bitfinex/quotes_SOLUSD_20250125
["timestamp","ask_amount","ask_price","bid_price","bid_amount"]
[1737802120280,11.69193275,248.28,248.15,20.0]
[1737802120603,11.69193275,248.3,248.16,23.776884]
[1737802120807,11.69193275,248.3,248.16,241.580284]
[1737802121605,11.69193275,248.3,248.18,23.776884]
[1737802121803,13.24583275,248.32,248.18,23.776884]
[1737802121998,13.24583275,248.32,248.18,241.580284]
[1737802122204,13.24583275,248.32,248.18,242.580284]
[1737802122511,1.5539,248.32,248.18,246.609484]
[1737802122911,1.5539,248.32,248.18,245.609484]
[1737802123305,13.24583275,248.32,248.18,557.609484]
[1737802123701,11.69193275,248.34,248.22,23.776884]
[1737802124013,11.69193275,248.32,248.22,137.6]
[1737802124706,11.69193275,248.3,248.18,80.2034]
[1737802128507,11.75493275,248.3,248.19,23.776884]
[1737802128989,11.69193275,248.26,248.19,217.8034]
[1737802129411,11.69193275,248.28,248.19,217.8034]
[1737802132095,11.75493275,248.3,248.19,217.8034]
[1737802132304,11.75493275,248.3,248.2,23.776884]
[1737802133789,11.75493275,248.3,248.19,217.8034]
[1737802133995,11.69193275,248.28,248.19,217.8034]
[1737802137924,7.47648141,248.28,248.19,217.8034]
[1737802138901,7.47648141,248.22,248.19,80.2034]
[1737802139105,31.49062564,248.28,248.13,217.8034]
[1737802139106,7.47648141,248.2,248.13,217.8034]
[1737802139712,7.47648141,248.22,248.13,217.8034]
[1737802139922,7.47648141,248.24,248.13,217.8034]
[1737802140098,7.47648141,248.22,248.13,217.8034]
[1737802140797,7.47648141,248.16,248.11,137.6]
[1737802141107,7.47648141,248.16,248.13,0.03]
[1737802141717,11.6931209,248.16,248.13,0.03]
[1737802141915,11.6931209,248.14,248.13,0.03]
[1737802142294,20.0,248.11,247.99,219.3478]
[1737802142494,11.6931209,248.07,247.99,219.3478]
[1737802142996,11.6931209,248.07,247.99,217.8034]
[1737802144996,11.6931209,248.07,247.98,137.6]
[1737802145219,11.6931209,248.03,247.97,0.03]
[1737802145925,11.6931209,248.05,247.97,0.03]
[1737802147808,11.6931209,248.07,247.97,0.03]
[1737802149027,11.6931209,248.05,247.97,0.03]
[1737802149320,11.6931209,248.03,247.97,0.03]
[1737802149699,11.6931209,248.05,247.97,0.03]
[1737802149914,11.6931209,248.07,247.97,0.03]
[1737802150114,31.6931209,248.07,247.97,0.03]
[1737802150525,31.6931209,248.07,247.97,217.8334]
[1737802152112,11.6931209,248.07,247.97,217.8334]
[1737802152316,11.6931209,248.07,247.97,221.8661]
[1737802152819,11.6931209,248.09,247.97,217.8334]
[1737802153541,19.1085209,248.16,247.97,217.8334]
[1737802153542,11.6931209,247.99,247.97,0.03]
[1737802155222,11.6931209,248.01,247.97,0.03]
[1737802156137,11.6931209,247.99,247.97,0.03]
[1737802163208,11.6931209,247.99,247.97,0.0001]
[1737802171340,11.6931209,248.03,247.97,0.0001]
[1737802173040,11.6931209,248.03,247.97,217.8035]
[1737802173552,11.6931209,248.03,247.97,137.6001]
[1737802176353,11.6931209,248.05,247.97,137.6001]
[1737802178427,11.6931209,248.01,247.97,137.6001]
[1737802178629,11.6931209,248.01,247.97,80.2035]
[1737802178822,11.6931209,247.99,247.97,80.2035]
[1737802179027,11.6931209,247.99,247.97,0.0001]
[1737802181035,12.6931209,247.99,247.97,0.0001]
[1737802182022,11.6931209,247.99,247.97,0.0001]
[1737802183029,12.7561209,247.99,247.97,0.0001]
[1737802185746,11.7561209,247.99,247.97,0.0001]
[1737802189352,0.063,247.99,247.97,0.0001]
[1737802192966,11.7561209,247.99,247.97,0.0001]
[1737802196070,0.063,247.99,247.97,0.0001]
[1737802199765,11.7561209,247.99,247.97,0.0001]
[1737802203076,0.063,247.99,247.97,0.0001]
[1737802203373,11.7561209,247.99,247.97,0.0001]
[1737802204458,0.063,247.99,247.97,0.0001]
[1737802206966,0.063,247.99,247.97,217.8035]
[1737802207756,0.063,247.99,247.98,23.776884]
[1737802209089,0.063,247.99,247.98,27.809384]
[1737802209376,7.48867254,248.14,248.02,23.776884]
[1737802209683,11.6954506,248.14,248.04,23.776884]
[1737802211280,11.6954506,248.08,248.03,1.5053]
[1737802211480,11.6954506,248.06,248.02,217.8034]
[1737802212784,11.6954506,248.04,248.02,217.8034]
[1737802213084,11.6954506,248.04,247.97,1.5054]
[1737802213085,11.6954506,248.04,247.97,139.1054]
[1737802213288,11.6954506,248.01,247.97,0.0001]
[1737802214199,11.6954506,248.03,247.97,0.0001]
[1737802216268,11.6954506,248.13,248.01,1.5053]
[1737802216472,11.6954506,248.15,248.02,23.776884]
[1737802216684,11.6954506,248.15,248.02,241.580284]
[1737802216890,11.6954506,248.12,248.02,217.8034]
[1737802218764,11.6954506,248.08,248.02,217.8034]
[1737802218970,11.6954506,248.08,248.02,80.2034]
[1737802219710,11.6954506,248.06,248.02,80.2034]
[1737802219898,20.0,248.01,247.97,0.0001]
[1737802220205,11.6954506,247.98,247.97,0.0001]
[1737802221508,11.6954506,248.0,247.97,0.0001]
[1737802223476,11.6954506,247.98,247.97,0.0001]
[1737802226005,11.6954506,248.0,247.97,0.0001]
[1737802228712,11.6954506,248.02,247.97,0.0001]
[1737802229013,11.6954506,248.04,247.97,217.8035]
[1737802229714,11.6954506,248.06,247.97,217.8035]
[1737802230016,11.6954506,248.08,247.97,217.8035]
[1737802230390,0.063,248.03,247.97,217.8035]
[1737802231695,0.063,248.03,247.98,1.5217]
[1737802233702,0.063,248.03,247.98,219.3251]
[1737802233901,0.063,248.03,247.98,217.8034]
[1737802234120,11.6954506,248.02,247.98,217.8034]
[1737802234290,0.063,248.03,247.98,217.8034]
[1737802245337,0.063,248.03,247.99,30.055884]
[1737802245536,0.063,248.03,247.99,247.859284]
[1737802246041,0.063,248.03,248.0,1.6175]
[1737802248364,0.063,248.03,248.01,23.776884]
[1737802248749,0.063,248.03,248.0,219.4209]
[1737802249267,7.55006156,248.03,248.0,80.2034]
[1737802251676,0.063,248.03,248.0,80.2034]
[1737802254564,0.063,248.03,248.0,217.8034]
[1737802255456,0.063,248.03,248.0,529.8034]
[1737802256375,0.063,248.03,248.0,217.8034]
[1737802257571,0.063,248.03,248.01,23.776884]
[1737802258058,0.063,248.03,248.02,25.408784]
[1737802258259,0.063,248.03,248.02,243.212184]
[1737802259470,0.063,248.03,248.02,555.212184]
[1737802260565,11.70452457,248.18,248.05,20.0]
[1737802260771,11.70452457,248.18,248.06,23.776884]
[1737802261149,11.70452457,248.16,248.06,23.776884]
[1737802262368,11.70452457,248.16,248.05,217.8034]
[1737802262676,11.70452457,248.14,248.05,217.8034]
[1737802264463,11.70452457,248.12,248.05,217.8034]
[1737802264857,11.70452457,248.1,248.05,217.8034]
[1737802266376,11.70452457,248.12,248.05,217.8034]
[1737802266888,11.70452457,248.1,248.05,217.8034]
[1737802267679,11.70452457,248.1,248.05,80.2034]
[1737802273700,7.48729166,248.1,248.05,80.2034]
[1737802277883,7.48729166,248.08,248.05,80.2034]
[1737802279714,1.0,248.14,248.03,0.03]
[1737802279922,7.48729166,248.04,248.03,0.03]
[1737802280907,7.48729166,248.04,247.97,0.0001]
[1737802280908,20.0,248.01,247.97,0.0001]
[1737802281116,7.48729166,247.98,247.97,0.0001]
[1737802281718,7.48729166,248.0,247.97,0.0001]
[1737802284013,7.48729166,248.02,247.97,0.0001]
[1737802284199,7.48729166,248.04,247.97,0.0001]
[1737802285183,7.48729166,248.06,247.97,137.6001]
[1737802285387,7.48729166,248.08,247.97,143.9713]
[1737802287308,7.48729166,248.08,247.98,23.776884]
[1737802287704,7.48729166,248.1,247.98,23.776884]
[1737802288015,7.48729166,248.1,247.98,241.580284]
[1737802288207,7.48729166,248.1,247.99,1.5884]
[1737802289407,7.48729166,248.08,247.99,1.5884]
[1737802290511,8.8507,248.17,248.0,23.776884]
[1737802290512,7.48729166,248.12,248.0,23.776884]
[1737802290819,7.48729166,248.12,248.0,241.580284]
[1737802291111,7.48729166,248.16,248.03,20.0]
[1737802291314,0.063,248.1,248.03,20.0]
[1737802291517,0.063,248.1,248.04,23.776884]
[1737802293512,0.063,248.1,248.0,217.8034]
[1737802293818,0.063,248.1,248.01,10.64]
[1737802294016,0.063,248.1,248.02,312.0]
[1737802294395,7.55029166,248.1,248.02,312.0]
[1737802294620,7.55029166,248.1,248.02,137.6]
[1737802296400,7.48729166,248.08,248.02,137.6]
[1737802296735,7.48729166,248.08,248.0,217.8034]
[1737802299218,7.55029166,248.1,248.0,217.8034]
[1737802304920,7.48729166,248.08,248.0,217.8034]
[1737802306330,0.063,248.1,248.0,80.2034]
[1737802306331,7.48729166,248.04,248.0,80.2034]
[1737802306531,7.48729166,248.02,248.0,80.2034]
[1737802306832,7.48729166,248.02,247.97,0.0001]
[1737802307011,7.48729166,248.0,247.97,0.0001]
[1737802310337,7.48729166,248.03,247.97,0.0001]
[1737802311123,7.48729166,248.05,247.97,217.8035]
[1737802314033,7.48729166,248.03,247.97,217.8035]
[1737802315137,7.48729166,248.01,247.97,217.8035]
[1737802316030,7.48729166,248.01,247.97,0.0001]
[1737802316234,24.776884,248.09,247.97,0.0001]
[1737802316235,7.48729166,247.99,247.97,0.0001]
[1737802316838,7.48729166,248.01,247.97,0.0001]
[1737802318538,7.48729166,247.99,247.97,0.0001]
[1737802319539,7.48729166,248.01,247.97,0.0001]
[1737802321138,7.48729166,247.99,247.97,0.0001]
[1737802329354,7.48729166,248.03,247.97,0.0001]
[1737802329732,7.48729166,248.0,247.97,0.0001]
[1737802337769,7.48729166,247.98,247.97,0.0001]
[1737802342368,7.48729166,248.0,247.97,0.0001]
[1737802345988,7.48729166,248.02,247.97,0.0001]
[1737802346656,0.063,248.03,247.97,0.0001]
[1737802346852,0.063,248.03,247.97,219.3821]
[1737802347875,0.063,248.03,247.97,223.4148]
[1737802350003,0.063,248.03,247.97,535.4148]
[1737802350396,0.063,248.03,247.97,219.3821]
[1737802352511,0.063,248.03,247.97,81.7821]
[1737802353501,7.48729166,248.02,247.97,80.2035]
[1737802355414,0.063,248.03,247.97,0.0001]
[1737802356583,7.48729166,248.02,247.97,0.0001]
[1737802356912,7.48729166,247.98,247.97,0.0001]
[1737802361190,31.26417566,247.98,247.97,0.0001]
[1737802361388,20.0,247.95,247.88,0.03]
[1737802361720,7.48729166,247.89,247.88,0.03]
[1737802364996,20.0,247.86,247.82,6.33053394]
[1737802365319,7.48729166,247.83,247.82,6.33053394]
[1737802365689,7.48729166,247.85,247.82,6.33053394]
[1737802366033,7.48729166,247.87,247.82,6.33053394]
[1737802367319,20.0,247.89,247.82,6.33053394]
[1737802367320,7.48729166,247.85,247.82,6.33053394]
[1737802369546,20.0,247.89,247.82,6.33053394]
[1737802369547,7.48729166,247.83,247.82,6.33053394]
[1737802372927,7.48729166,247.83,247.82,6.36053394]
[1737802376631,32.26417566,247.83,247.82,0.03]
[1737802376812,20.0,247.8,247.78,0.03]
[1737802377012,7.48729166,247.79,247.78,0.03]
[1737802380856,7.48729166,247.8,247.78,0.03]
[1737802384446,37.4364583,247.8,247.78,0.03]
[1737802385856,7.48729166,247.8,247.78,0.03]
[1737802388325,0.063,247.88,247.78,0.03]
[1737802388326,7.48729166,247.82,247.78,0.03]
[1737802388726,7.48729166,247.84,247.78,0.03]
[1737802394753,7.48729166,247.82,247.78,0.03]
[1737802396779,7.48729166,247.84,247.78,0.03]
[1737802397147,7.48729166,247.86,247.79,27.9298]
[1737802397349,7.55029166,248.03,247.86,1.0]
[1737802397577,0.063,248.03,247.87,9.50321144]
[1737802397747,0.063,248.03,247.93,23.776884]
[1737802397953,0.063,248.03,247.93,161.376884]
[1737802398349,0.063,248.03,247.97,23.776884]
[1737802399184,0.063,248.03,247.96,21.0]
[1737802399484,0.063,248.03,247.96,20.0]
[1737802399777,0.063,248.03,247.97,43.776884]
[1737802399995,0.063,248.03,247.98,23.776884]
[1737802400157,0.063,248.03,247.98,161.376884]
[1737802400351,0.063,248.03,247.98,473.376884]
[1737802401957,0.063,248.03,247.98,137.6]
[1737802403081,0.063,248.03,247.98,148.24]
[1737802403753,0.063,248.03,247.98,141.6324]
[1737802403960,0.063,248.03,247.99,23.776884]
[1737802404572,0.063,248.03,247.99,34.416884]
[1737802405153,0.063,248.03,248.01,23.776884]
[1737802405972,0.063,248.03,248.01,241.580284]
[1737802406380,0.063,248.03,248.01,245.612284]
[1737802408585,0.063,248.12,248.11,1.0]
[1737802408761,0.063,248.22,248.15,23.776884]
[1737802409086,0.063,248.22,248.17,20.0]
[1737802409785,0.063,248.22,248.17,47.806284]
[1737802409987,0.063,248.22,248.18,23.776884]
[1737802410485,0.063,248.22,248.19,23.776884]
[1737802410665,0.063,248.22,248.21,30.190184]
[1737802410868,0.063,248.28,248.21,167.790184]
[1737802411480,0.063,248.28,248.24,20.0]
[1737802411793,0.063,248.28,248.27,20.0]
[1737802411973,0.063,248.28,248.27,157.6]
[1737802413391,0.063,248.3,248.27,157.6]
[1737802415088,0.063,248.3,248.27,241.8312]
[1737802415290,0.063,248.3,248.27,217.8034]
[1737802416385,0.063,248.3,248.28,4.0276]
[1737802416688,0.063,248.3,248.27,221.8311]
[1737802417193,0.063,248.3,248.27,217.8034]
[1737802417696,0.063,248.3,248.27,80.2034]
[1737802421398,20.0,248.27,248.18,137.6]
[1737802421587,11.69979239,248.26,248.14,86.3814]
[1737802421783,11.69979239,248.26,248.14,80.2034]
[1737802422903,11.69979239,248.28,248.14,80.2034]
[1737802423094,11.69979239,248.26,248.14,80.2034]
[1737802423979,11.69979239,248.26,248.14,217.8034]
[1737802424198,11.69979239,248.26,248.14,221.8332]
[1737802424399,11.69979239,248.26,248.14,80.2034]
[1737802424604,11.69979239,248.24,248.12,20.0]
[1737802424907,11.69979239,248.22,248.1,4.0305]
[1737802425403,11.69979239,248.22,248.09,20.0]
[1737802426402,11.69979239,248.22,248.09,24.0307]
[1737802426794,0.063,248.3,248.19,2.0]
[1737802427103,0.063,248.3,248.2,32.794884]
[1737802427307,0.063,248.3,248.24,23.776884]
[1737802427482,0.063,248.3,248.25,4.0281]
[1737802428911,0.03,248.28,248.25,4.0281]
[1737802431909,6.1883,248.4,248.26,4.0279]
[1737802432201,20.0,248.36,248.26,223.5279]
[1737802433418,42.45096718,248.35,248.21,4.0288]
[1737802433619,18.67408318,248.31,248.21,4.0288]
[1737802433997,18.67408318,248.33,248.21,4.0288]
[1737802434598,18.67408318,248.35,248.21,4.0288]
[1737802435325,20.0,248.32,248.21,4.0288]
[1737802435608,18.67408318,248.37,248.22,23.776884]
[1737802436418,18.67408318,248.42,248.26,23.776884]
[1737802436621,18.67408318,248.44,248.27,7.797]
[1737802436922,18.67408318,248.44,248.29,23.776884]
[1737802437725,20.0,248.41,248.29,23.776884]
[1737802437935,20.0,248.41,248.3,4.0273]
[1737802439723,20.0,248.41,248.28,4.0277]
[1737802439928,18.67408318,248.44,248.28,4.0277]
[1737802440123,18.67408318,248.46,248.28,316.0277]
[1737802440424,0.063,248.47,248.32,20.0]
[1737802440633,0.063,248.47,248.32,239.5]
[1737802441008,20.063,248.47,248.32,239.5]
[1737802441208,20.0,248.45,248.32,239.5]
[1737802441749,0.063,248.47,248.36,20.0]
[1737802441910,0.063,248.47,248.33,4.0268]
[1737802442108,0.063,248.47,248.33,153.7268]
[1737802442322,0.063,248.47,248.34,7.8272]
[1737802442733,0.063,248.47,248.35,23.776884]
[1737802443444,0.063,248.47,248.37,23.776884]
[1737802443625,0.063,248.47,248.37,137.6]
[1737802444434,0.063,248.47,248.36,4.0264]
[1737802444435,0.063,248.47,248.36,137.6]
[1737802445246,20.0,248.46,248.34,148.3072]
[1737802446130,20.0,248.44,248.34,7.8272]
[1737802446337,20.0,248.42,248.34,6.2094]
[1737802446537,20.0,248.42,248.3,141.6273]
[1737802447529,0.063,248.47,248.31,27.803984]
[1737802447729,0.063,248.47,248.35,23.776884]
[1737802448236,0.063,248.47,248.34,20.0]
[1737802448442,0.063,248.47,248.34,239.5]
[1737802448747,0.063,248.47,248.35,23.776884]
[1737802448947,0.063,248.47,248.39,23.776884]
[1737802449253,0.063,248.47,248.39,161.376884]
[1737802449653,0.063,248.47,248.4,4.0257]
[1737802450348,0.063,248.47,248.39,137.6]
[1737802450654,0.063,248.47,248.39,141.6258]
[1737802450951,0.063,248.47,248.35,137.6]
[1737802451163,0.063,248.47,248.36,23.776884]
[1737802451334,0.063,248.47,248.39,20.0]
[1737802451637,0.063,248.47,248.4,4.0257]
[1737802453656,0.063,248.47,248.4,223.5257]
[1737802456872,0.063,248.47,248.4,219.5]
[1737802457362,18.73708318,248.47,248.4,219.5]
[1737802457669,18.67408318,248.45,248.35,4.0264]
[1737802458176,18.67408318,248.45,248.33,223.5268]
[1737802458565,18.67408318,248.43,248.33,223.5268]
[1737802461875,18.67408318,248.45,248.33,223.5268]
[1737802463679,11.66596438,248.44,248.33,223.5268]
[1737802465267,13.30126438,248.46,248.35,4.0265]
[1737802465653,13.30126438,248.46,248.35,141.6265]
[1737802466574,1.6353,248.46,248.35,141.6265]
[1737802469783,13.30126438,248.46,248.35,141.6265]
[1737802471591,13.30126438,248.46,248.34,4.0267]
[1737802473983,1.6353,248.46,248.34,4.0267]
[1737802474285,0.063,248.47,248.36,4.0264]
[1737802474486,0.063,248.47,248.37,23.776884]
[1737802475082,0.063,248.47,248.37,335.776884]
[1737802475680,0.063,248.47,248.39,23.776884]
[1737802475880,0.063,248.47,248.39,161.376884]
[1737802476693,0.063,248.47,248.4,4.0257]
[1737802477300,0.063,248.47,248.4,142.1357]
[1737802478512,0.063,248.47,248.4,141.6257]
[1737802480403,0.063,248.47,248.37,137.6]
[1737802480604,0.063,248.47,248.38,4.536]
[1737802481192,0.063,248.47,248.39,23.776884]
[1737802481599,0.063,248.47,248.4,0.51]
[1737802482403,0.063,248.47,248.41,4.0256]
[1737802484807,0.063,248.47,248.41,14.6456]
[1737802486312,0.063,248.47,248.39,23.776884]
[1737802486614,0.063,248.47,248.41,137.6]
[1737802492291,0.063,248.47,248.39,4.0259]
[1737802493207,0.063,248.47,248.35,137.663]
[1737802493414,0.063,248.47,248.36,23.0664]
[1737802494114,0.063,248.47,248.37,23.776884]
[1737802495402,0.063,248.47,248.38,4.026]
[1737802496215,0.063,248.47,248.39,312.0]
[1737802496813,0.063,248.47,248.4,4.0257]
[1737802501221,0.063,248.47,248.4,141.6257]
[1737802502518,0.063,248.47,248.41,23.776884]
[1737802502706,0.063,248.47,248.41,243.276884]
[1737802502908,0.063,248.47,248.41,560.37451211]
[1737802503604,0.063,248.47,248.45,27.801784]
[1737802503810,0.063,248.47,248.45,165.401784]
[1737802506007,0.063,248.53,248.49,23.776884]
[1737802506324,0.063,248.53,248.48,144.4444]
[1737802506614,0.063,248.53,248.48,2.82]
[1737802506816,0.063,248.53,248.47,0.0629]
[1737802507019,0.063,248.53,248.47,4.0874]
[1737802507820,0.063,248.53,248.48,23.776884]
[1737802508124,0.063,248.53,248.49,4.0243]
[1737802509719,11.65205607,248.52,248.47,0.0629]
[1737802510327,11.65205607,248.5,248.47,0.0629]
[1737802510505,13.16135607,248.5,248.47,0.1259]
[1737802510698,1.5093,248.5,248.47,0.1259]
[1737802511597,0.063,248.53,248.47,0.1259]
[1737802513302,11.65205607,248.52,248.47,0.1259]
[1737802517110,7.8411223,248.52,248.47,0.1259]
[1737802520011,11.65205607,248.5,248.47,0.1259]
[1737802520228,11.65205607,248.48,248.47,0.1259]
[1737802520505,23.839884,248.53,248.47,0.1259]
[1737802520506,11.65205607,248.5,248.47,0.1259]
[1737802522234,11.65205607,248.48,248.47,0.1259]
[1737802523416,11.65205607,248.52,248.47,137.7259]
[1737802523617,0.063,248.53,248.51,20.0]
[1737802523809,0.063,248.53,248.52,23.776884]
[1737802524618,0.063,248.53,248.52,27.800684]
[1737802524928,0.063,248.53,248.52,165.400684]
[1737802526623,0.063,248.53,248.52,477.400684]
[1737802527415,0.063,248.53,248.52,482.49831211]
[1737802528119,0.063,248.53,248.52,344.89831211]
[1737802529729,0.063,248.53,248.52,32.89831211]
[1737802532624,7.7519,248.68,248.56,23.776884]
[1737802532818,7.7519,248.68,248.56,161.376884]
[1737802533539,7.7519,248.68,248.56,137.6]
[1737802533720,7.7519,248.68,248.57,4.023]
[1737802537426,0.03,248.72,248.57,4.023]
[1737802539053,0.03,248.72,248.56,37.857884]
[1737802540538,1.5528,248.72,248.56,37.857884]
[1737802540843,1.5528,248.72,248.56,14.081]
[1737802544356,20.0,248.71,248.56,14.081]
[1737802545757,20.0,248.71,248.56,37.857884]
[1737802548456,20.0,248.71,248.56,42.95551211]
[1737802548649,20.0,248.71,248.58,4.0228]
[1737802549055,0.03,248.72,248.59,23.776884]
[1737802549633,0.03,248.72,248.59,166.47451211]
[1737802549829,0.03,248.72,248.63,20.0]
[1737802550554,0.03,248.72,248.71,20.0]
[1737802555167,7.47862687,248.72,248.71,19.9497]
[1737802555342,14.40282687,248.72,248.71,19.9497]
[1737802555547,39.70251087,248.72,248.71,19.9497]
[1737802555747,38.63611087,248.72,248.71,17.8267]
[1737802556568,31.25551087,248.72,248.71,17.8267]
[1737802557279,20.0,248.69,248.58,7.8492]
[1737802557849,20.0,248.69,248.58,11.8719]
[1737802559978,20.0,248.71,248.58,11.8719]
[1737802560957,20.0,248.69,248.58,11.8719]
[1737802561668,20.0,248.69,248.58,7.8492]
[1737802562555,7.44862687,248.68,248.56,0.063]
[1737802563842,20.0,248.66,248.56,0.063]
[1737802564991,20.0,248.66,248.56,4.0861]
[1737802565155,20.0,248.67,248.56,4.0861]
[1737802565556,7.47862687,248.72,248.56,4.0861]
[1737802565757,0.03,248.72,248.58,4.0228]
[1737802566056,7.44862687,248.7,248.56,0.063]
[1737802566252,20.0,248.67,248.56,4.086]
[1737802566471,7.47862687,248.72,248.56,4.086]
[1737802566647,0.03,248.72,248.56,4.086]
[1737802567064,7.44862687,248.71,248.56,4.086]
[1737802567271,7.44862687,248.69,248.56,4.086]
[1737802567581,7.44862687,248.69,248.56,0.063]
[1737802567883,20.0,248.66,248.56,0.063]
[1737802568250,20.0,248.66,248.56,4.0861]
[1737802575470,20.0,248.66,248.56,316.0861]
[1737802575670,20.0,248.66,248.56,4.0861]
[1737802575892,7.44862687,248.67,248.56,4.0861]
[1737802576117,7.44862687,248.67,248.56,0.063]
[1737802577102,7.44862687,248.67,248.56,4.0861]
[1737802581499,7.47862687,248.71,248.59,1.5594]
[1737802581687,7.44862687,248.69,248.59,1.5594]
[1737802583581,7.44862687,248.69,248.6,4.0225]
[1737802584012,7.47862687,248.71,248.6,4.0225]
[1737802584391,7.47862687,248.71,248.61,6.0626]
[1737802586415,7.47862687,248.71,248.62,4.0222]
[1737802592610,7.44862687,248.69,248.61,6.0626]
[1737802592808,7.44862687,248.67,248.61,6.0626]
[1737802593211,7.44862687,248.69,248.61,6.0626]
[1737802593412,27.44862687,248.69,248.61,6.0626]
[1737802593717,20.0,248.69,248.61,10.0848]
[1737802593904,0.03,248.71,248.61,10.0848]
[1737802594397,20.0,248.7,248.61,10.0848]
[1737802595321,7.47862687,248.71,248.61,6.0626]
[1737802595721,7.44862687,248.69,248.61,6.0626]
[1737802595907,7.44862687,248.65,248.59,1.5594]
[1737802597432,7.44862687,248.67,248.59,1.5594]
[1737802598302,7.44862687,248.65,248.59,1.5594]
[1737802600318,27.44862687,248.6,248.59,0.063]
[1737802604629,51.22551087,248.6,248.59,0.063]
[1737802606218,22.0,248.57,248.56,0.063]
[1737802606418,61.02001835,248.53,248.52,0.063]
[1737802606604,61.42423756,248.53,248.52,0.063]
[1737802607621,31.62973008,248.53,248.52,0.063]
[1737802608428,61.42423756,248.53,248.52,0.063]
[1737802609115,62.42423756,248.53,248.52,0.063]
[1737802609315,20.0,248.49,248.42,6.259]
[1737802609518,31.22551087,248.48,248.42,6.259]
[1737802611925,7.44862687,248.48,248.42,6.259]
[1737802614633,7.85284608,248.48,248.4,1.6835]
[1737802614936,31.62973008,248.48,248.4,1.6835]
[1737802617632,20.0,248.44,248.4,1.6835]
[1737802617939,7.44862687,248.41,248.4,1.6835]
[1737802618743,31.22551087,248.41,248.4,0.063]
[1737802619039,61.02001835,248.41,248.4,0.063]
[1737802619925,20.0,248.38,248.37,0.063]
[1737802620127,51.62973008,248.38,248.37,0.063]
[1737802620543,51.22551087,248.38,248.37,0.063]
[1737802621017,27.44862687,248.38,248.37,0.063]
[1737802623345,51.22551087,248.38,248.37,0.063]
[1737802623927,27.44862687,248.38,248.37,0.063]
[1737802632129,7.44862687,248.42,248.37,0.063]
[1737802632334,7.44862687,248.46,248.39,1.5747]
[1737802632932,81.4,248.58,248.39,1.5747]
[1737802632933,7.44862687,248.49,248.39,1.5747]
[1737802633145,1.0,248.61,248.4,23.776884]
[1737802633353,7.44862687,248.51,248.41,4.0256]
[1737802634946,2.61217833,248.61,248.41,4.0256]
[1737802634947,7.44862687,248.53,248.41,4.0256]
[1737802635153,7.44862687,248.53,248.43,4.0252]
[1737802636350,7.44862687,248.55,248.43,4.0252]
[1737802637539,7.44862687,248.55,248.44,1.5747]
[1737802638641,7.44862687,248.57,248.45,4.0249]
[1737802640559,7.44862687,248.53,248.44,1.5747]
[1737802640764,7.44862687,248.53,248.44,5.5997]
[1737802641258,1.0,248.61,248.44,5.5997]
[1737802641259,7.44862687,248.55,248.44,5.5997]
[1737802641950,7.44862687,248.57,248.44,5.5997]
[1737802642355,7.44862687,248.57,248.45,8.0442]
[1737802643269,7.44862687,248.57,248.46,4.0247]
[1737802643649,7.44862687,248.59,248.46,4.0247]
[1737802644039,7.44862687,248.61,248.47,1.5586]
[1737802644277,7.44862687,248.63,248.5,1.5586]
[1737802644746,7.47862687,248.65,248.5,1.5586]
[1737802644958,7.47862687,248.65,248.55,7.5679]
[1737802645450,7.47862687,248.65,248.56,4.0231]